fUST/lending_fUST_20250611
["ID","MTS","AMOUNT","RATE_DAILY","PERIOD"]
[365372379,1749623438678,-500.0,0.00019999,2]
[365372380,1749623438690,-500.0,0.00019999,2]
[365372381,1749623438702,-400.95,0.00019999,2]
[365372382,1749623438714,-500.0,0.00019999,2]
[365372383,1749623438725,-500.0,0.00019999,2]
[365372384,1749623438736,-500.0,0.00019999,2]
[365372385,1749623438747,-612.44146029,0.00019999,2]
[365372386,1749623438758,-500.0,0.00019999,2]
[365372387,1749623438769,-377.0,0.00019999,2]
[365372388,1749623438780,-500.0,0.00019999,2]
[365372389,1749623438791,-500.0,0.00019999,2]
[365372390,1749623438802,-500.0,0.00019999,2]
[365372391,1749623438813,-500.0,0.00019999,2]
[365372392,1749623438823,-500.0,0.00019999,2]
[365372393,1749623438834,-500.0,0.00019999,2]
[365372394,1749623438845,-500.0,0.00019999,2]
[365372395,1749623438856,-500.0,0.00019999,2]
[365372396,1749623438866,-500.0,0.00019999,2]
[365372397,1749623438877,-547.76594225,0.00019999,2]
[365372398,1749623438888,-338.8931273,0.00019999,2]
[365372399,1749623438899,-503.46257878,0.00019999,2]
[365372400,1749623438910,-500.0,0.00019999,2]
[365372401,1749623438920,-500.0,0.00019999,2]
[365372402,1749623438931,-500.0,0.00019999,2]
[365372403,1749623438942,-500.0,0.00019999,2]
[365372404,1749623438953,-381.07667762,0.00019999,2]
[365372405,1749623438964,-500.0,0.00019999,2]
[365372406,1749623438975,-500.0,0.00019999,2]
[365372407,1749623438986,-500.0,0.00019999,2]
[365372408,1749623438997,-500.0,0.00019999,2]
[365372409,1749623439008,-200.26941952,0.00019999,2]
[365372410,1749623439019,-500.0,0.00019999,2]
[365372411,1749623439030,-500.0,0.00019999,2]
[365372412,1749623439040,-500.0,0.00019999,2]
[365372413,1749623439051,-19970.83829179,0.0002,2]
[365372414,1749623439062,-65299.89897098,0.0002,2]
[365372415,1749623439073,-501.27414158,0.0002,2]
[365372416,1749623439085,-258.42,0.0002012,2]
[365372417,1749623439097,-160.287833,0.00020187,2]
[365372418,1749623439108,-300.0,0.00020299,2]
[365372419,1749623439119,-11120.7808991,0.000203,3]
[365372420,1749623439130,-160.0,0.000203,3]
[365372421,1749623439141,-844.64040732,0.000203,3]
[365372422,1749623439152,-213.16534259,0.000203,3]
[365372423,1749623439163,-22442.1216816,0.00020304,2]
[365372424,1749623439173,-168.717,0.00020472,2]
[365372425,1749623439184,-500.0,0.00020548,2]
[365372426,1749623439195,-500.0,0.00020548,2]
[365372427,1749623439206,-500.0,0.00020548,2]
[365372428,1749623439217,-426.37171349,0.00020548,2]
[365372429,1749623439229,-500.0,0.00020548,2]
[365372430,1749623439241,-500.0,0.00020548,2]
[365372431,1749623439252,-500.0,0.00020548,2]
[365372432,1749623439262,-500.0,0.00020548,2]
[365372433,1749623439274,-500.0,0.00020548,2]
[365372434,1749623439285,-500.0,0.00020548,2]
[365372435,1749623439297,-500.0,0.00020548,2]
[365372436,1749623439458,-500.0,0.00020548,2]
[365372437,1749623439475,-500.0,0.00020548,2]
[365372438,1749623439484,-500.0,0.00020548,2]
[365372439,1749623439499,-500.0,0.00020548,2]
[365372440,1749623439508,-500.0,0.00020548,2]
[365372441,1749623439519,-500.0,0.00020548,2]
[365372442,1749623439528,-500.0,0.00020548,2]
[365372443,1749623439538,-500.0,0.00020548,2]
[365372444,1749623439547,-500.0,0.00020548,2]
[365372445,1749623439557,-500.0,0.00020548,2]
[365372446,1749623439567,-500.0,0.00020548,2]
[365372447,1749623439576,-228.84233157,0.00020609,2]
[365372448,1749623439586,-427.76,0.000209,2]
[365372449,1749623439595,-1793.09722873,0.000209,4]
[365372450,1749623439604,-1793.0972285,0.00021038,4]
[365372451,1749623439614,-500.0,0.00021064,2]
[365372452,1749623439623,-516.85,0.00021078,2]
[365372453,1749623439632,-460.0,0.00021095,4]
[365372455,1749623439642,-634.17,0.00021095,4]
[365372456,1749623439651,-1358.42,0.00021095,4]
[365372457,1749623439662,-460.0,0.00021095,4]
[365372458,1749623439675,-460.0,0.00021095,4]
[365372459,1749623439684,-460.0,0.00021095,4]
[365372460,1749623439693,-485.57,0.00021095,4]
[365372461,1749623439702,-460.0,0.00021095,4]
[365372462,1749623439714,-460.0,0.00021095,4]
[365372463,1749623439724,-460.0,0.00021095,4]
[365372464,1749623439733,-506.96,0.00021095,4]
[365372465,1749623439744,-1444.09,0.00021095,4]
[365372466,1749623439754,-460.0,0.00021095,4]
[365372467,1749623439763,-460.0,0.00021095,4]
[365372468,1749623439772,-460.0,0.00021095,4]
[365372469,1749623439782,-612.65,0.00021095,4]
[365372470,1749623439791,-1100.1,0.00021095,4]
[365372471,1749623439801,-869.92,0.00021095,4]
[365372472,1749623439810,-427.24405743,0.00021095,4]
[365372473,1749623439820,-460.0,0.00021095,4]
[365372474,1749623439830,-460.0,0.00021095,4]
[365372475,1749623439840,-460.0,0.00021095,4]
[365372476,1749623439849,-2110.39,0.00021095,4]
[365372477,1749623439859,-2040.14,0.00021095,4]
[365372478,1749623439868,-460.0,0.00021095,4]
[365372479,1749623439877,-460.0,0.00021095,4]
[365372480,1749623439887,-1145.15,0.00021095,4]
[365372481,1749623439896,-2200.32,0.00021095,4]
[365372482,1749623439906,-460.0,0.00021095,4]
[365372483,1749623439916,-837.45,0.00021095,4]
[365372484,1749623439925,-460.0,0.00021095,4]
[365372485,1749623439935,-460.0,0.00021095,4]
[365372486,1749623439945,-1057.2,0.00021095,4]
[365372487,1749623439955,-460.0,0.00021095,4]
[365372488,1749623439967,-980.49,0.00021095,4]
[365372489,1749623439977,-400.0,0.00021095,4]
[365372490,1749623439987,-343.10227837,0.00021095,4]
[365372491,1749623439996,-460.0,0.00021095,4]
[365372492,1749623440006,-400.0,0.00021095,4]
[365372493,1749623440015,-404.33718176,0.00021095,4]
[365372494,1749623440025,-460.0,0.00021095,4]
[365372495,1749623440034,-460.0,0.00021095,4]
[365372496,1749623440044,-460.0,0.00021095,4]
[365372497,1749623440053,-460.0,0.00021095,4]
[365372498,1749623440063,-1793.0972285,0.00021176,4]
[365372499,1749623440073,-1793.0972285,0.00021314,5]
[365372500,1749623440084,-228.84233157,0.00021319,2]
[365372501,1749623440093,-460.0,0.00021369,4]
[365372502,1749623440102,-634.17,0.00021369,4]
[365372503,1749623440112,-1358.42,0.00021369,4]
[365372504,1749623440122,-242.13398225,0.00021369,4]
[365372505,1749623440131,-460.0,0.00021369,4]
[365372506,1749623440141,-327.47085574,0.00021369,4]
[365372507,1749623440151,-485.57,0.00021369,4]
[365372508,1749623440161,-460.0,0.00021369,4]
[365372509,1749623440171,-460.0,0.00021369,4]
[365372510,1749623440180,-460.0,0.00021369,4]
[365372511,1749623440190,-506.96,0.00021369,4]
[365372512,1749623440200,-1444.09,0.00021369,4]
[365372513,1749623440209,-460.0,0.00021369,4]
[365372514,1749623440219,-460.0,0.00021369,4]
[365372515,1749623440228,-460.0,0.00021369,4]
[365372516,1749623440238,-612.65,0.00021369,4]
[365372517,1749623440247,-1100.1,0.00021369,4]
[365372518,1749623440257,-869.92,0.00021369,4]
[365372519,1749623440266,-460.0,0.00021369,4]
[365372520,1749623440275,-460.0,0.00021369,4]
[365372521,1749623440284,-460.0,0.00021369,4]
[365372522,1749623440294,-2110.39,0.00021369,4]
[365372523,1749623440304,-2040.14,0.00021369,4]
[365372524,1749623440313,-460.0,0.00021369,4]
[365372525,1749623440323,-460.0,0.00021369,4]
[365372526,1749623440333,-1145.15,0.00021369,4]
[365372527,1749623440343,-2200.32,0.00021369,4]
[365372528,1749623440352,-460.0,0.00021369,4]
[365372529,1749623440362,-837.45,0.00021369,4]
[365372530,1749623440372,-460.0,0.00021369,4]
[365372531,1749623440381,-400.0,0.00021369,4]
[365372532,1749623440391,-1057.2,0.00021369,4]
[365372533,1749623440400,-980.49,0.00021369,4]
[365372534,1749623440410,-460.0,0.00021369,4]
[365372535,1749623440419,-460.0,0.00021369,4]
[365372536,1749623440429,-460.0,0.00021369,4]
[365372537,1749623440439,-302.60882944,0.0002145,2]
[365372538,1749623440449,-1793.0972285,0.00021452,5]
[365372539,1749623440459,-1793.0972285,0.0002159,5]
[365372540,1749623440468,-460.0,0.00021643,4]
[365372541,1749623440477,-634.17,0.00021643,4]
[365372542,1749623440487,-1358.42,0.00021643,4]
[365372543,1749623440496,-460.0,0.00021643,4]
[365372544,1749623440505,-485.57,0.00021643,4]
[365372546,1749623440515,-460.0,0.00021643,4]
[365372548,1749623440524,-460.0,0.00021643,4]
[365372549,1749623440533,-460.0,0.00021643,4]
[365372550,1749623440542,-506.96,0.00021643,4]
[365372551,1749623440552,-1444.09,0.00021643,4]
[365372552,1749623440561,-460.0,0.00021643,4]
[365372553,1749623440570,-460.0,0.00021643,4]
[365372554,1749623440580,-460.0,0.00021643,4]
[365372555,1749623440590,-612.65,0.00021643,4]
[365372556,1749623440599,-1100.1,0.00021643,4]
[365372557,1749623440608,-869.92,0.00021643,4]
[365372558,1749623440617,-460.0,0.00021643,4]
[365372559,1749623440627,-460.0,0.00021643,4]
[365372560,1749623440636,-460.0,0.00021643,4]
[365372561,1749623440646,-2110.39,0.00021643,4]
[365372562,1749623440655,-2040.14,0.00021643,4]
[365372563,1749623440667,-460.0,0.00021643,4]
[365372564,1749623440676,-539.72976915,0.00021643,4]
[365372565,1749623440685,-1145.15,0.00021643,4]
[365372566,1749623440695,-2200.32,0.00021643,4]
[365372567,1749623440703,-460.0,0.00021643,4]
[365372568,1749623440714,-837.45,0.00021643,4]
[365372569,1749623440724,-460.0,0.00021643,4]
[365372570,1749623440734,-1057.2,0.00021643,4]
[365372571,1749623440746,-980.49,0.00021643,4]
[365372572,1749623440756,-460.0,0.00021643,4]
[365372573,1749623440766,-460.0,0.00021643,4]
[365372574,1749623440775,-460.0,0.00021643,4]
[365372575,1749623440784,-1793.0972285,0.00021728,5]
[365372576,1749623440796,-420.0,0.00021777,2]
[365372577,1749623440805,-797.83299492,0.00021817,2]
[365372578,1749623440815,-1793.0972285,0.00021866,6]
[365372579,1749623440824,-634.17,0.00021917,4]
[365372580,1749623440834,-1358.42,0.00021917,4]
[365372581,1749623440844,-460.0,0.00021917,4]
[365372582,1749623440853,-485.57,0.00021917,4]
[365372583,1749623440862,-460.0,0.00021917,4]
[365372584,1749623440872,-460.0,0.00021917,4]
[365372585,1749623440882,-506.96,0.00021917,4]
[365372586,1749623440891,-1444.09,0.00021917,4]
[365372587,1749623440901,-460.0,0.00021917,4]
[365372588,1749623440911,-460.0,0.00021917,4]
[365372589,1749623440921,-460.0,0.00021917,4]
[365372590,1749623440930,-612.65,0.00021917,4]
[365372591,1749623440941,-1100.1,0.00021917,4]
[365372592,1749623440951,-869.92,0.00021917,4]
[365372593,1749623440960,-460.0,0.00021917,4]
[365372594,1749623440970,-460.0,0.00021917,4]
[365372595,1749623440980,-460.0,0.00021917,4]
[365372596,1749623440990,-2110.39,0.00021917,4]
[365372597,1749623440999,-2040.14,0.00021917,4]
[365372598,1749623441010,-460.0,0.00021917,4]
[365372599,1749623441019,-1145.15,0.00021917,4]
[365372600,1749623441029,-2200.32,0.00021917,4]
[365372601,1749623441039,-460.0,0.00021917,4]
[365372602,1749623441049,-837.45,0.00021917,4]
[365372603,1749623441059,-460.0,0.00021917,4]
[365372604,1749623441069,-1057.2,0.00021917,4]
[365372605,1749623441079,-980.49,0.00021917,4]
[365372606,1749623441089,-460.0,0.00021917,4]
[365372607,1749623441099,-460.0,0.00021917,4]
[365372608,1749623441109,-172.64663163,0.00021918,2]
[365372609,1749623441119,-43292.58,0.00022,7]
[365372610,1749623441129,-1793.0972285,0.00022003,6]
[365372611,1749623441138,-228.84233157,0.00022028,2]
[365372612,1749623441148,-775.27,0.00022036,2]
[365372613,1749623441157,-420.0,0.00022097,2]
[365372614,1749623441167,-1793.0972285,0.00022141,6]
[365372615,1749623441176,-634.17,0.00022191,4]
[365372616,1749623441186,-1358.42,0.00022191,4]
[365372617,1749623441195,-460.0,0.00022191,4]
[365372618,1749623441205,-485.57,0.00022191,4]
[365372619,1749623441214,-158.09617834,0.00022191,4]
[365372620,1749623441223,-460.0,0.00022191,4]
[365372621,1749623441232,-506.96,0.00022191,4]
[365372622,1749623441241,-1444.09,0.00022191,4]
[365372623,1749623441250,-460.0,0.00022191,4]
[365372624,1749623441260,-460.0,0.00022191,4]
[365372625,1749623441269,-460.0,0.00022191,4]
[365372626,1749623441279,-612.65,0.00022191,4]
[365372627,1749623441288,-1100.1,0.00022191,4]
[365372628,1749623441297,-869.92,0.00022191,4]
[365372629,1749623441307,-449.4868992,0.00022191,4]
[365372630,1749623441317,-460.0,0.00022191,4]
[365372631,1749623441326,-460.0,0.00022191,4]
[365372632,1749623441337,-2110.39,0.00022191,4]
[365372633,1749623441346,-2040.14,0.00022191,4]
[365372634,1749623441356,-460.0,0.00022191,4]
[365372635,1749623441365,-1145.15,0.00022191,4]
[365372636,1749623441375,-2200.32,0.00022191,4]
[365372637,1749623441384,-460.0,0.00022191,4]
[365372638,1749623441393,-837.45,0.00022191,4]
[365372639,1749623441403,-460.0,0.00022191,4]
[365372640,1749623441412,-1057.2,0.00022191,4]
[365372641,1749623441421,-980.49,0.00022191,4]
[365372642,1749623441430,-518.72,0.00022191,4]
[365372643,1749623441440,-460.0,0.00022191,4]
[365372644,1749623441449,-465.4712377,0.00022245,2]
[365372645,1749623441459,-1793.0972285,0.00022279,6]
[365372646,1749623441468,-797.83299488,0.00022297,2]
[365372647,1749623441478,-427.76,0.000223,7]
[365372648,1749623441487,-1793.0972285,0.00022417,7]
[365372649,1749623441496,-634.17,0.00022465,4]
[365372650,1749623441505,-1358.42,0.00022465,4]
[365372651,1749623441515,-460.0,0.00022465,4]
[365372652,1749623441524,-485.57,0.00022465,4]
[365372653,1749623441534,-460.0,0.00022465,4]
[365372654,1749623441543,-506.96,0.00022465,4]
[365372655,1749623441552,-1444.09,0.00022465,4]
[365372656,1749623441562,-460.0,0.00022465,4]
[365372657,1749623441571,-460.0,0.00022465,4]
[365372658,1749623441581,-460.0,0.00022465,4]
[365372659,1749623441591,-1100.1,0.00022465,4]
[365372660,1749623441601,-612.65,0.00022465,4]
[365372661,1749623441611,-869.92,0.00022465,4]
[365372662,1749623441621,-460.0,0.00022465,4]
[365372663,1749623441631,-2040.14,0.00022465,4]
[365372664,1749623441640,-2110.39,0.00022465,4]
[365372665,1749623441649,-460.0,0.00022465,4]
[365372666,1749623441659,-1145.15,0.00022465,4]
[365372667,1749623441673,-2200.32,0.00022465,4]
[365372668,1749623441683,-460.0,0.00022465,4]
[365372669,1749623441693,-837.45,0.00022465,4]
[365372670,1749623441702,-460.0,0.00022465,4]
[365372671,1749623441713,-1057.2,0.00022465,4]
[365372672,1749623441722,-980.49,0.00022465,4]
[365372673,1749623441731,-151.27,0.00022465,4]
[365372674,1749623441742,-160.0,0.00022493,2]
[365372675,1749623441751,-213.16534259,0.00022493,2]
[365372676,1749623441761,-160.0,0.00022493,2]
[365372677,1749623441770,-229.71724145,0.00022493,2]
[365372678,1749623441780,-835.03886221,0.00022493,2]
[365372679,1749623441790,-160.0,0.00022493,2]
[365372680,1749623441799,-844.64040732,0.00022493,2]
[365372681,1749623441809,-424.19973472,0.00022493,2]
[365372682,1749623441818,-11860.25191276,0.00022493,2]
[365372683,1749623441829,-160.0,0.00022493,2]
[365372684,1749623441839,-1793.0972285,0.00022555,7]
[365372685,1749623441849,-1793.0972285,0.00022693,7]
[365372686,1749623441859,-228.84233157,0.00022738,2]
[365372687,1749623441868,-166.67,0.00022738,2]
[365372688,1749623441878,-634.17,0.00022739,4]
[365372689,1749623441888,-1358.42,0.00022739,4]
[365372690,1749623441897,-460.0,0.00022739,4]
[365372691,1749623441907,-485.57,0.00022739,4]
[365372692,1749623441917,-460.0,0.00022739,4]
[365372693,1749623441926,-506.96,0.00022739,4]
[365372694,1749623441936,-1444.09,0.00022739,4]
[365372695,1749623441946,-460.0,0.00022739,4]
[365372696,1749623441955,-460.0,0.00022739,4]
[365372697,1749623441965,-460.0,0.00022739,4]
[365372698,1749623441975,-1100.1,0.00022739,4]
[365372699,1749623441984,-612.65,0.00022739,4]
[365372700,1749623441994,-869.92,0.00022739,4]
[365372701,1749623442004,-2040.14,0.00022739,4]
[365372702,1749623442013,-2110.39,0.00022739,4]
[365372703,1749623442023,-460.0,0.00022739,4]
[365372704,1749623442032,-1145.15,0.00022739,4]
[365372705,1749623442042,-2200.32,0.00022739,4]
[365372706,1749623442052,-460.0,0.00022739,4]
[365372707,1749623442061,-837.45,0.00022739,4]
[365372708,1749623442072,-460.0,0.00022739,4]
[365372709,1749623442083,-1057.2,0.00022739,4]
[365372710,1749623442092,-980.49,0.00022739,4]
[365372711,1749623442102,-797.83299488,0.00022776,2]
[365372712,1749623442114,-1793.0972285,0.00022831,8]
[365372713,1749623442124,-1793.0972285,0.00022969,8]
[365372714,1749623442133,-567.2069987,0.00022973,2]
[365372715,1749623442143,-502.39152022,0.00022973,2]
[365372716,1749623442152,-600.0,0.00022973,2]
[365372717,1749623442162,-13310.07562572,0.0002299,2]
[365372718,1749623442171,-1033.7,0.00022994,2]
[365372719,1749623442180,-835.03886221,0.00023,3]
[365372720,1749623442190,-424.19973472,0.00023,3]
[365372721,1749623442199,-160.0,0.00023,3]
[365372722,1749623442208,-67369.56474976,0.00023,2]
[365372723,1749623442218,-160.0,0.00023,3]
[365372724,1749623442227,-624.3157757,0.00023,2]
[365372725,1749623442236,-40260.56482803,0.00023,2]
[365372726,1749623442246,-10043.38789823,0.00023,2]
[365372727,1749623442255,-181167.89203179,0.00023,20]
[365372728,1749623442264,-1328.71905864,0.00023,2]
[365372729,1749623442273,-12971.49030353,0.00023,2]
[365372730,1749623442282,-500.0,0.00023,3]
[365372731,1749623442292,-500.0,0.00023,3]
[365372732,1749623442301,-500.0,0.00023,3]
[365372733,1749623442311,-500.0,0.00023,3]
[365372734,1749623442321,-500.0,0.00023,3]
[365372735,1749623442331,-500.0,0.00023,3]
[365372736,1749623442340,-500.0,0.00023,3]
[365372737,1749623442350,-229.71724145,0.00023,3]
[365372738,1749623442359,-500.0,0.00023,3]
[365372739,1749623442369,-500.0,0.00023,3]
[365372740,1749623442378,-500.0,0.00023,3]
[365372741,1749623442388,-634.17,0.00023013,4]
[365372742,1749623442398,-1358.42,0.00023013,4]
[365372743,1749623442407,-460.0,0.00023013,4]
[365372744,1749623442518,-485.57,0.00023013,4]
[365372746,1749623442528,-460.0,0.00023013,4]
[365372747,1749623442538,-506.96,0.00023013,4]
[365372748,1749623442548,-1444.09,0.00023013,4]
[365372749,1749623442558,-460.0,0.00023013,4]
[365372750,1749623442568,-460.0,0.00023013,4]
[365372752,1749623442578,-460.0,0.00023013,4]
[365372753,1749623442588,-1100.1,0.00023013,4]
[365372754,1749623442598,-612.65,0.00023013,4]
[365372755,1749623442608,-869.92,0.00023013,4]
[365372756,1749623442617,-2110.39,0.00023013,4]
[365372757,1749623442627,-2040.14,0.00023013,4]
[365372758,1749623442637,-460.0,0.00023013,4]
[365372759,1749623442648,-1145.15,0.00023013,4]
[365372760,1749623442658,-2200.32,0.00023013,4]
[365372761,1749623442671,-460.0,0.00023013,4]
[365372762,1749623442681,-837.45,0.00023013,4]
[365372763,1749623442691,-460.0,0.00023013,4]
[365372764,1749623442701,-1057.2,0.00023013,4]
[365372765,1749623442714,-980.49,0.00023013,4]
[365372766,1749623442723,-503.96951609,0.00023055,2]
[365372767,1749623442733,-506.16225976,0.00023055,2]
[365372768,1749623442744,-500.0,0.00023055,2]
[365372769,1749623442754,-501.56200485,0.00023055,2]
[365372770,1749623442764,-500.53643659,0.00023055,2]
[365372771,1749623442774,-500.0,0.00023056,2]
[365372772,1749623442784,-1793.0972285,0.00023107,8]
[365372773,1749623442794,-151.6816467,0.00023134,2]
[365372774,1749623442804,-151.70252757,0.00023134,2]
[365372775,1749623442814,-1703.96675958,0.00023134,2]
[365372776,1749623442824,-151.0,0.00023134,2]
[365372777,1749623442835,-5000.0,0.00023134,2]
[365372778,1749623442844,-500.0,0.00023134,2]
[365372779,1749623442854,-151.0,0.00023134,2]
[365372780,1749623442863,-500.0,0.00023134,2]
[365372781,1749623442873,-151.0,0.00023134,2]
[365372782,1749623442883,-500.0,0.00023134,2]
[365372783,1749623442892,-151.0,0.00023134,2]
[365372784,1749623442902,-500.0,0.00023134,2]
[365372785,1749623442912,-750.0,0.00023134,2]
[365372786,1749623442922,-151.0,0.00023134,2]
[365372787,1749623442931,-750.0,0.00023134,2]
[365372788,1749623442941,-500.0,0.00023134,2]
[365372789,1749623442950,-151.0,0.00023134,2]
[365372790,1749623442960,-750.0,0.00023134,2]
[365372791,1749623442970,-500.0,0.00023134,2]
[365372794,1749623442980,-151.0,0.00023134,2]
[365372796,1749623442990,-750.0,0.00023134,2]
[365372798,1749623443001,-500.0,0.00023134,2]
[365372800,1749623443010,-151.0,0.00023134,2]
[365372802,1749623443020,-750.0,0.00023134,2]
[365372804,1749623443030,-500.0,0.00023134,2]
[365372806,1749623443039,-151.0,0.00023134,2]
[365372809,1749623443049,-750.0,0.00023134,2]
[365372812,1749623443058,-500.0,0.00023134,2]
[365372814,1749623443067,-151.0,0.00023134,2]
[365372817,1749623443077,-500.0,0.00023134,2]
[365372821,1749623443087,-151.0,0.00023134,2]
[365372823,1749623443097,-151.0,0.00023134,2]
[365372827,1749623443106,-151.0,0.00023134,2]
[365372830,1749623443117,-2025.32447279,0.00023134,2]
[365372833,1749623443126,-170.69580346,0.00023134,2]
[365372836,1749623443136,-750.0,0.00023134,2]
[365372838,1749623443147,-750.0,0.00023134,2]
[365372840,1749623443157,-750.0,0.00023134,2]
[365372842,1749623443167,-774.36179069,0.00023134,2]
[365372844,1749623443176,-207.4,0.00023134,2]
[365372846,1749623443186,-500.0,0.00023199,2]
[365372848,1749623443195,-500.0,0.00023199,2]
[365372850,1749623443205,-500.0,0.00023199,2]
[365372852,1749623443215,-500.0,0.00023199,2]
[365372854,1749623443224,-445.3341,0.00023199,2]
[365372856,1749623443234,-500.0,0.00023199,2]
[365372858,1749623443243,-500.0,0.00023199,2]
[365372860,1749623443253,-500.0,0.00023199,2]
[365372862,1749623443262,-500.0,0.00023199,2]
[365372864,1749623443272,-500.0,0.00023199,2]
[365372866,1749623443281,-500.0,0.00023199,2]
[365372868,1749623443290,-500.0,0.00023199,2]
[365372870,1749623443300,-500.0,0.00023199,2]
[365372872,1749623443310,-500.0,0.00023199,2]
[365372874,1749623443319,-301.1302046,0.00023199,2]
[365372876,1749623443329,-500.0,0.00023199,2]
[365372878,1749623443339,-500.0,0.00023199,2]
[365372880,1749623443348,-500.0,0.00023199,2]
[365372882,1749623443357,-500.0,0.00023199,2]
[365372884,1749623443367,-500.0,0.00023199,2]
[365372886,1749623443376,-500.0,0.00023199,2]
[365372888,1749623443385,-500.0,0.00023199,2]
[365372890,1749623443395,-500.0,0.00023199,2]
[365372892,1749623443404,-500.0,0.00023199,2]
[365372894,1749623443414,-500.0,0.00023199,2]
[365372896,1749623443424,-172.34613586,0.00023199,2]
[365372898,1749623443433,-43292.58,0.000232,7]
[365372900,1749623443443,-1793.0972285,0.00023245,8]
[365372902,1749623443453,-797.83299488,0.00023256,2]
[365372904,1749623443462,-500.0,0.00023256,2]
[365372906,1749623443472,-634.17,0.00023287,4]
[365372908,1749623443481,-1358.42,0.00023287,4]
[365372910,1749623443491,-460.0,0.00023287,4]
[365372912,1749623443501,-485.57,0.00023287,4]
[365372914,1749623443510,-460.0,0.00023287,4]
[365372916,1749623443519,-506.96,0.00023287,4]
[365372918,1749623443528,-1444.09,0.00023287,4]
[365372920,1749623443538,-460.0,0.00023287,4]
[365372922,1749623443546,-460.0,0.00023287,4]
[365372924,1749623443556,-460.0,0.00023287,4]
[365372926,1749623443565,-1100.1,0.00023287,4]
[365372928,1749623443575,-612.65,0.00023287,4]
[365372930,1749623443585,-869.92,0.00023287,4]
[365372932,1749623443595,-2110.39,0.00023287,4]
[365372934,1749623443604,-2040.14,0.00023287,4]
[365372936,1749623443614,-460.0,0.00023287,4]
[365372938,1749623443623,-1145.15,0.00023287,4]
[365372941,1749623443632,-2200.32,0.00023287,4]
[365372942,1749623443642,-460.0,0.00023287,4]
[365372945,1749623443652,-837.45,0.00023287,4]
[365372947,1749623443665,-460.0,0.00023287,4]
[365372949,1749623443675,-1057.2,0.00023287,4]
[365372951,1749623443685,-980.49,0.00023287,4]
[365372953,1749623443694,-1381.44,0.000233,7]
[365372955,1749623443705,-357.2019528,0.00023315,2]
[365372957,1749623443714,-158.7816813,0.00023315,2]
[365372959,1749623443724,-153.0,0.00023315,2]
[365372961,1749623443734,-576.0207923,0.00023315,2]
[365372963,1749623443746,-1793.0972285,0.00023383,9]
[365372965,1749623443756,-6066.69733587,0.000234,7]
[365372967,1749623443765,-6066.69733587,0.000234,7]
[365372969,1749623443775,-160.0,0.000234,7]
[365372971,1749623443784,-213.16534259,0.000234,7]
[365372973,1749623443794,-228.84233157,0.00023447,2]
[365372975,1749623443803,-1005.052943,0.000235,2]
[365372977,1749623443812,-600.0,0.0002352,2]
[365372979,1749623443822,-1200.0,0.00023521,2]
[365372981,1749623443832,-1793.0972285,0.00023521,9]
[365372983,1749623443842,-237.86102838,0.00023561,4]
[365372985,1749623443852,-634.17,0.00023561,4]
[365372987,1749623443862,-1358.42,0.00023561,4]